DepartmentFamily,Entity,Date,ExpenseType,ExpenseArea,Supplier,Transaction Number,Amount,VAT Registration Number
BEIS,The Insolvency Service,02/11/2020,Estates - Property,Finance & Commercial,British Gas Business,300024472,78.20,684966762
BEIS,The Insolvency Service,02/11/2020,Estates - Property,Finance & Commercial,E.On,300024469,491.88,559097889
BEIS,The Insolvency Service,02/11/2020,HR,People & Capability,Health Management Ltd,300024591,384.93,792250621
BEIS,The Insolvency Service,02/11/2020,Staff Costs - Non-Perms,Finance & Commercial,Pertemps Recruitment Partnership Limited,300024470,564.48,844278800
BEIS,The Insolvency Service,02/11/2020,Staff Costs - Non-Perms,Finance & Commercial,Pertemps Recruitment Partnership Limited,300024615,564.48,844278800
BEIS,The Insolvency Service,02/11/2020,Staff Costs - Non-Perms,Strategy & Change,SmartSourcing,300024435,14471.35,788507869
BEIS,The Insolvency Service,02/11/2020,Travel & Subsistence,Official Receiver Services,Staff Payment,900016300,14.91,
BEIS,The Insolvency Service,02/11/2020,Travel & Subsistence,Official Receiver Services,Staff Payment,900016300,1.83,
BEIS,The Insolvency Service,02/11/2020,Travel & Subsistence,Official Receiver Services,Staff Payment,900016300,0.65,
BEIS,The Insolvency Service,02/11/2020,Travel & Subsistence,Official Receiver Services,Staff Payment,900016300,0.76,
BEIS,The Insolvency Service,02/11/2020,Travel & Subsistence,Official Receiver Services,Staff Payment,900016300,0.76,
BEIS,The Insolvency Service,02/11/2020,Travel & Subsistence,Official Receiver Services,Staff Payment,900016300,1.64,
BEIS,The Insolvency Service,02/11/2020,Travel & Subsistence,Official Receiver Services,Staff Payment,900016300,0.65,
BEIS,The Insolvency Service,02/11/2020,Travel & Subsistence,Official Receiver Services,Staff Payment,900016300,0.76,
BEIS,The Insolvency Service,02/11/2020,Travel & Subsistence,Investigations & Enforcement Services,Staff Payment,900016355,2.06,
BEIS,The Insolvency Service,02/11/2020,Travel & Subsistence,Investigations & Enforcement Services,Staff Payment,900016355,3.25,
BEIS,The Insolvency Service,02/11/2020,Travel & Subsistence,Investigations & Enforcement Services,Staff Payment,900016355,2.00,
BEIS,The Insolvency Service,02/11/2020,Travel & Subsistence,Investigations & Enforcement Services,Staff Payment,900016355,49.05,
BEIS,The Insolvency Service,02/11/2020,Travel & Subsistence,Official Receiver Services,Staff Payment,900016321,76.05,
BEIS,The Insolvency Service,02/11/2020,Travel & Subsistence,Official Receiver Services,Staff Payment,900016352,13.99,
BEIS,The Insolvency Service,02/11/2020,Travel & Subsistence,Chief Executive Office,Staff Payment,900016366,6.70,
BEIS,The Insolvency Service,02/11/2020,Travel & Subsistence,Official Receiver Services,Staff Payment,900016351,17.10,
BEIS,The Insolvency Service,02/11/2020,Travel & Subsistence,Official Receiver Services,Staff Payment,900016351,17.10,
BEIS,The Insolvency Service,02/11/2020,Travel & Subsistence,Investigations & Enforcement Services,Staff Payment,900016349,7.65,
BEIS,The Insolvency Service,02/11/2020,Travel & Subsistence,Investigations & Enforcement Services,Staff Payment,900016170,2.06,
BEIS,The Insolvency Service,02/11/2020,Travel & Subsistence,Investigations & Enforcement Services,Staff Payment,900016170,2.45,
BEIS,The Insolvency Service,02/11/2020,Travel & Subsistence,Investigations & Enforcement Services,Staff Payment,900016247,72.00,
BEIS,The Insolvency Service,02/11/2020,Travel & Subsistence,Investigations & Enforcement Services,Staff Payment,900016247,12.30,
BEIS,The Insolvency Service,02/11/2020,Travel & Subsistence,Investigations & Enforcement Services,Staff Payment,900016356,8.80,
BEIS,The Insolvency Service,02/11/2020,Travel & Subsistence,Investigations & Enforcement Services,Staff Payment,900016356,14.50,
BEIS,The Insolvency Service,02/11/2020,Travel & Subsistence,Investigations & Enforcement Services,Staff Payment,900016356,54.00,
BEIS,The Insolvency Service,02/11/2020,Travel & Subsistence,Investigations & Enforcement Services,Staff Payment,900016356,3.60,
BEIS,The Insolvency Service,02/11/2020,Travel & Subsistence,Investigations & Enforcement Services,Staff Payment,900016356,3.60,
BEIS,The Insolvency Service,02/11/2020,Travel & Subsistence,Investigations & Enforcement Services,Staff Payment,900016229,2.04,
BEIS,The Insolvency Service,02/11/2020,Travel & Subsistence,Investigations & Enforcement Services,Staff Payment,900016229,10.88,
BEIS,The Insolvency Service,02/11/2020,Travel & Subsistence,Investigations & Enforcement Services,Staff Payment,900016371,3.70,
BEIS,The Insolvency Service,02/11/2020,Travel & Subsistence,Investigations & Enforcement Services,Staff Payment,900016371,3.00,
BEIS,The Insolvency Service,02/11/2020,Travel & Subsistence,Investigations & Enforcement Services,Staff Payment,900016371,5.20,
BEIS,The Insolvency Service,02/11/2020,Travel & Subsistence,Investigations & Enforcement Services,Staff Payment,900016371,32.40,
BEIS,The Insolvency Service,02/11/2020,Travel & Subsistence,Investigations & Enforcement Services,Staff Payment,900016361,5.00,
BEIS,The Insolvency Service,02/11/2020,Travel & Subsistence,Investigations & Enforcement Services,Staff Payment,900016361,5.00,
BEIS,The Insolvency Service,02/11/2020,Travel & Subsistence,Investigations & Enforcement Services,Staff Payment,900016361,6.50,
BEIS,The Insolvency Service,02/11/2020,Travel & Subsistence,Investigations & Enforcement Services,Staff Payment,900016361,20.70,
BEIS,The Insolvency Service,02/11/2020,Travel & Subsistence,Investigations & Enforcement Services,Staff Payment,900016361,77.40,
BEIS,The Insolvency Service,02/11/2020,Travel & Subsistence,Investigations & Enforcement Services,Staff Payment,900016361,88.20,
BEIS,The Insolvency Service,02/11/2020,Travel & Subsistence,Investigations & Enforcement Services,Staff Payment,900016361,20.70,
BEIS,The Insolvency Service,02/11/2020,Travel & Subsistence,Investigations & Enforcement Services,Staff Payment,900016361,5.50,
BEIS,The Insolvency Service,03/11/2020,Legal - Costs of Criminal Prosecutions and Advice,Legal Services Division,18 Red Lion Court Chambers,300024643,6705.40,766793665
BEIS,The Insolvency Service,03/11/2020,Legal - Costs of Criminal Prosecutions and Advice,Legal Services Division,2 Harcourt Buildings,300024644,571.26,946426795
BEIS,The Insolvency Service,03/11/2020,Staff Costs - Non-Perms,Strategy & Change,Advanced 365 Limited,300024625,163946.40,927547983
BEIS,The Insolvency Service,03/11/2020,Estates - Property,Finance & Commercial,Allied Publicity Services (Manchester) Ltd T/A Aps Group,300024604,9706.42,146494152
BEIS,The Insolvency Service,03/11/2020,Estates - Property,Strategy & Change,Avison Young,300024645,6000.00,
BEIS,The Insolvency Service,03/11/2020,ICT,Finance & Commercial,CDW Limited,300024635,2783.77,902194939
BEIS,The Insolvency Service,03/11/2020,Legal - Costs of Civil Litigation Disqualifications,Legal Services Division,Enterprise Chambers,300024639,1485.00,107042165
BEIS,The Insolvency Service,03/11/2020,ICT,Digital Technology Services,Experian Qas Ltd,300024593,9783.60,887133593
BEIS,The Insolvency Service,03/11/2020,"Printing, Stationary & Postage",Investigations & Enforcement Services,Royal Mail,300024583,944.40,243170002
BEIS,The Insolvency Service,03/11/2020,Staff Costs - Non-Perms,Strategy & Change,SmartSourcing,300025133,18744.00,788507869
BEIS,The Insolvency Service,03/11/2020,Legal - Costs of Criminal Prosecutions and Advice,Legal Services Division,St Philips Barristers,300024638,924.00,614053968
BEIS,The Insolvency Service,03/11/2020,Travel & Subsistence,Official Receiver Services,Staff Payment,900016360,54.90,
BEIS,The Insolvency Service,03/11/2020,Travel & Subsistence,Investigations & Enforcement Services,Staff Payment,900016357,13.00,
BEIS,The Insolvency Service,03/11/2020,Travel & Subsistence,Investigations & Enforcement Services,Staff Payment,900016357,36.00,
BEIS,The Insolvency Service,03/11/2020,Travel & Subsistence,Investigations & Enforcement Services,Staff Payment,900016357,36.00,
BEIS,The Insolvency Service,03/11/2020,Travel & Subsistence,Investigations & Enforcement Services,Staff Payment,900016326,36.00,
BEIS,The Insolvency Service,03/11/2020,Travel & Subsistence,Investigations & Enforcement Services,Staff Payment,900016369,5.90,
BEIS,The Insolvency Service,03/11/2020,Travel & Subsistence,Investigations & Enforcement Services,Staff Payment,900016369,3.00,
BEIS,The Insolvency Service,03/11/2020,Travel & Subsistence,Investigations & Enforcement Services,Staff Payment,900016369,7.50,
BEIS,The Insolvency Service,03/11/2020,Travel & Subsistence,Investigations & Enforcement Services,Staff Payment,900016369,39.60,
BEIS,The Insolvency Service,03/11/2020,Travel & Subsistence,Investigations & Enforcement Services,Staff Payment,900016341,18.32,
BEIS,The Insolvency Service,03/11/2020,Travel & Subsistence,Investigations & Enforcement Services,Staff Payment,900016363,93.60,
BEIS,The Insolvency Service,03/11/2020,Travel & Subsistence,Investigations & Enforcement Services,Staff Payment,900016363,44.43,
BEIS,The Insolvency Service,03/11/2020,Travel & Subsistence,Investigations & Enforcement Services,Staff Payment,900016320,4.50,
BEIS,The Insolvency Service,03/11/2020,Travel & Subsistence,Investigations & Enforcement Services,Staff Payment,900016320,20.70,
BEIS,The Insolvency Service,03/11/2020,Travel & Subsistence,Investigations & Enforcement Services,Staff Payment,900016368,7.50,
BEIS,The Insolvency Service,03/11/2020,Travel & Subsistence,Investigations & Enforcement Services,Staff Payment,900016368,35.10,
BEIS,The Insolvency Service,03/11/2020,Travel & Subsistence,Investigations & Enforcement Services,Staff Payment,900016368,25.65,
BEIS,The Insolvency Service,03/11/2020,Travel & Subsistence,Investigations & Enforcement Services,Staff Payment,900016368,36.45,
BEIS,The Insolvency Service,03/11/2020,Travel & Subsistence,Legal Services Division,Staff Payment,900016378,15.00,
BEIS,The Insolvency Service,03/11/2020,Travel & Subsistence,Investigations & Enforcement Services,Staff Payment,900016365,6.20,
BEIS,The Insolvency Service,03/11/2020,Travel & Subsistence,Investigations & Enforcement Services,Staff Payment,900016365,6.20,
BEIS,The Insolvency Service,03/11/2020,Travel & Subsistence,Investigations & Enforcement Services,Staff Payment,900016365,20.00,
BEIS,The Insolvency Service,03/11/2020,Travel & Subsistence,Investigations & Enforcement Services,Staff Payment,900016374,82.80,
BEIS,The Insolvency Service,03/11/2020,Travel & Subsistence,Investigations & Enforcement Services,Staff Payment,900016374,54.90,
BEIS,The Insolvency Service,03/11/2020,Travel & Subsistence,Official Receiver Services,Staff Payment,900016370,12.99,
BEIS,The Insolvency Service,03/11/2020,Travel & Subsistence,Investigations & Enforcement Services,Staff Payment,900016375,46.80,
BEIS,The Insolvency Service,03/11/2020,Travel & Subsistence,Official Receiver Services,Staff Payment,900016302,6.70,
BEIS,The Insolvency Service,03/11/2020,Travel & Subsistence,Official Receiver Services,Staff Payment,900016316,7.50,
BEIS,The Insolvency Service,03/11/2020,HR,People & Capability,Uksbs Shared Services Centre Ltd,300024641,381000.00,888825550
BEIS,The Insolvency Service,04/11/2020,Estates - Property,Strategy & Change,Avison Young,300024642,4200.00,
BEIS,The Insolvency Service,04/11/2020,Off-Site Storage,Official Receiver Services,Crown Records Management,300024687,921.43,902181658
BEIS,The Insolvency Service,04/11/2020,Off-Site Storage,Official Receiver Services,File Centre,300024675,300.90,885439474
BEIS,The Insolvency Service,04/11/2020,"Legal, Translation & Consultancy",Strategy & Change,Gowling Wragge Lawrence Graham  & Co,300024668,10575.92,858698838
BEIS,The Insolvency Service,04/11/2020,"Legal, Translation & Consultancy",Strategy & Change,Gowling Wragge Lawrence Graham  & Co,300024668,57.00,858698838
BEIS,The Insolvency Service,04/11/2020,Other Costs,Official Receiver Services,John Pye & Sons Limited,300024673,321.41,117777249
BEIS,The Insolvency Service,04/11/2020,Legal - Costs of Civil Litigation Disqualifications,Legal Services Division,K International Plc,300024672,114.00,600413800
BEIS,The Insolvency Service,04/11/2020,Estates - Property,Finance & Commercial,Middlesbrough Council,300024691,517.23,734213854
BEIS,The Insolvency Service,04/11/2020,Travel & Subsistence,Official Receiver Services,Staff Payment,900016304,1.00,
BEIS,The Insolvency Service,04/11/2020,Travel & Subsistence,Official Receiver Services,Staff Payment,900016304,3.00,
BEIS,The Insolvency Service,04/11/2020,Travel & Subsistence,Official Receiver Services,Staff Payment,900016304,113.85,
BEIS,The Insolvency Service,04/11/2020,Travel & Subsistence,Official Receiver Services,Staff Payment,900016304,5.00,
BEIS,The Insolvency Service,04/11/2020,Travel & Subsistence,Official Receiver Services,Staff Payment,900016350,19.50,
BEIS,The Insolvency Service,04/11/2020,Travel & Subsistence,Official Receiver Services,Staff Payment,900016350,5.00,
BEIS,The Insolvency Service,04/11/2020,Legal - Costs of Civil Litigation Disqualifications,Legal Services Division,SUNDRY SUPPLIER,300024663,1716.00,
BEIS,The Insolvency Service,04/11/2020,ICT,Strategy & Change,Thales Uk Ltd,300024395,32734.80,198955680
BEIS,The Insolvency Service,04/11/2020,Other Costs,Official Receiver Services,The Stationery Office Ltd,300024545,84.00,662774703
BEIS,The Insolvency Service,04/11/2020,Other Costs,Official Receiver Services,The Stationery Office Ltd,300024546,84.00,662774703
BEIS,The Insolvency Service,04/11/2020,Other Costs,Official Receiver Services,The Stationery Office Ltd,300024588,168.00,662774703
BEIS,The Insolvency Service,04/11/2020,Investigation & Enforcement,Official Receiver Services,Womble Bond Dickinson,300024660,262986.59,123392627
BEIS,The Insolvency Service,05/11/2020,Legal - Costs of Criminal Prosecutions and Advice,Legal Services Division,5 St Andrews Hill,300024725,2178.00,703074472
BEIS,The Insolvency Service,05/11/2020,ICT,Digital Technology Services,Advanced 365 Limited,300024181,178204.61,927547983
BEIS,The Insolvency Service,05/11/2020,ICT,Business Service Division,Advanced 365 Limited,300024741,2550.00,927547983
BEIS,The Insolvency Service,05/11/2020,Staff Costs - Non-Perms,Finance & Commercial,ALEXANDER MANN SOLUTIONS,300024527,-5411.32,7444926120
BEIS,The Insolvency Service,05/11/2020,Staff Costs - Non-Perms,Finance & Commercial,ALEXANDER MANN SOLUTIONS,300024666,47938.37,7444926120
BEIS,The Insolvency Service,05/11/2020,Staff Costs - Non-Perms,Strategy & Change,April Strategy LLP,300024682,37200.00,927406420
BEIS,The Insolvency Service,05/11/2020,Investigation & Enforcement,Official Receiver Services,Burness Paull & Williamsons Solicitors,300024752,14.72,216218532
BEIS,The Insolvency Service,05/11/2020,Legal - Outsourced Investigation,Investigations & Enforcement Services,Burness Paull & Williamsons Solicitors,300024753,8.17,216218532
BEIS,The Insolvency Service,05/11/2020,Legal - Costs of Recovering Civil Costs Awarded,Legal Services Division,Burness Paull & Williamsons Solicitors,300024754,752.06,216218532
BEIS,The Insolvency Service,05/11/2020,Estates - Property,Finance & Commercial,Edf Energy,300024750,756.70,523041202
BEIS,The Insolvency Service,05/11/2020,Legal - Costs of Civil Litigation Winding Up,Investigations & Enforcement Services,Gowling Wragge Lawrence Graham  & Co,300024758,8758.20,858698838
BEIS,The Insolvency Service,05/11/2020,Legal - Costs of Recovering Civil Costs Awarded,Legal Services Division,Gowling Wragge Lawrence Graham  & Co,300024759,10012.20,858698838
BEIS,The Insolvency Service,05/11/2020,Other Costs,Official Receiver Services,Insolvency Service,300024743,3433.42,
BEIS,The Insolvency Service,05/11/2020,Off-Site Storage,Business Service Division,Iron Mountain (Uk) Ltd,300024684,40515.64,607937516
BEIS,The Insolvency Service,05/11/2020,Legal - Costs of Civil Litigation Disqualifications,Legal Services Division,Enterprise Chambers,300024727,531.00,938136900
BEIS,The Insolvency Service,05/11/2020,Estates - Property,Finance & Commercial,Middlesbrough Council,300024742,172.55,734213854
BEIS,The Insolvency Service,05/11/2020,Staff Costs - Non-Perms,Finance & Commercial,Pertemps Recruitment Partnership Limited,300024749,564.48,844278800
BEIS,The Insolvency Service,05/11/2020,Legal - Costs of Criminal Prosecutions and Advice,Investigations & Enforcement Services,Pitney Bowes - Purchasepower,300024737,27.60,
BEIS,The Insolvency Service,05/11/2020,Legal - Costs of Criminal Prosecutions and Advice,Investigations & Enforcement Services,Pitney Bowes - Purchasepower,300024738,28.07,
BEIS,The Insolvency Service,05/11/2020,Legal - Costs of Criminal Prosecutions and Advice,Investigations & Enforcement Services,Pitney Bowes - Purchasepower,300024739,25.00,
BEIS,The Insolvency Service,05/11/2020,Legal - Costs of Criminal Prosecutions and Advice,Investigations & Enforcement Services,Pitney Bowes Finance Limited,300024751,255.20,
BEIS,The Insolvency Service,05/11/2020,"Printing, Stationary & Postage",Business Service Division,Quadient UK Limited,300024626,5500.00,
BEIS,The Insolvency Service,05/11/2020,Other Costs,Official Receiver Services,Royal Mail,300024667,2592.00,
BEIS,The Insolvency Service,05/11/2020,"Printing, Stationary & Postage",Business Service Division,Royal Mail,300024685,300.43,243170002
BEIS,The Insolvency Service,05/11/2020,"Printing, Stationary & Postage",Business Service Division,Royal Mail,300024621,1005.00,
BEIS,The Insolvency Service,05/11/2020,Legal - Costs of Civil Litigation Disqualifications,Legal Services Division,Shepherd & Wedderburn Ws (English Cases),300024755,1266.49,890559386
BEIS,The Insolvency Service,05/11/2020,Legal - Costs of Recovering Civil Costs Awarded,Legal Services Division,Shepherd & Wedderburn Ws (English Cases),300024756,534.55,890559386
BEIS,The Insolvency Service,05/11/2020,Legal - Costs of Recovering Civil Costs Awarded,Legal Services Division,Shepherd & Wedderburn Ws (Scottish Cases),300024757,463.21,125425142
BEIS,The Insolvency Service,05/11/2020,HR,People & Capability,Smart Employee Eyecare,300024676,247.00,
BEIS,The Insolvency Service,05/11/2020,Staff Costs - Non-Perms,Strategy & Change,SmartSourcing,300024659,17820.00,788507869
BEIS,The Insolvency Service,05/11/2020,Travel & Subsistence,Business Service Division,Staff Payment,900016331,12.56,
BEIS,The Insolvency Service,05/11/2020,Travel & Subsistence,Business Service Division,Staff Payment,900016331,3.50,
BEIS,The Insolvency Service,05/11/2020,Travel & Subsistence,Business Service Division,Staff Payment,900016379,2.81,
BEIS,The Insolvency Service,05/11/2020,Travel & Subsistence,Investigations & Enforcement Services,Staff Payment,900016358,35.10,
BEIS,The Insolvency Service,05/11/2020,Travel & Subsistence,Investigations & Enforcement Services,Staff Payment,900016358,45.00,
BEIS,The Insolvency Service,05/11/2020,Travel & Subsistence,Investigations & Enforcement Services,Staff Payment,900016358,32.40,
BEIS,The Insolvency Service,05/11/2020,Travel & Subsistence,Investigations & Enforcement Services,Staff Payment,900016358,85.95,
BEIS,The Insolvency Service,05/11/2020,Travel & Subsistence,Investigations & Enforcement Services,Staff Payment,900016358,3.50,
BEIS,The Insolvency Service,05/11/2020,Travel & Subsistence,Investigations & Enforcement Services,Staff Payment,900016358,9.00,
BEIS,The Insolvency Service,05/11/2020,Travel & Subsistence,Investigations & Enforcement Services,Staff Payment,900016358,99.00,
BEIS,The Insolvency Service,05/11/2020,Travel & Subsistence,Investigations & Enforcement Services,Staff Payment,900016358,5.00,
BEIS,The Insolvency Service,05/11/2020,Travel & Subsistence,Investigations & Enforcement Services,Staff Payment,900016358,5.00,
BEIS,The Insolvency Service,05/11/2020,Travel & Subsistence,Investigations & Enforcement Services,Staff Payment,900016358,13.90,
BEIS,The Insolvency Service,05/11/2020,Travel & Subsistence,Investigations & Enforcement Services,Staff Payment,900016358,5.00,
BEIS,The Insolvency Service,05/11/2020,Travel & Subsistence,Investigations & Enforcement Services,Staff Payment,900016358,3.00,
BEIS,The Insolvency Service,05/11/2020,Travel & Subsistence,Investigations & Enforcement Services,Staff Payment,900016358,5.00,
BEIS,The Insolvency Service,05/11/2020,Travel & Subsistence,Investigations & Enforcement Services,Staff Payment,900016385,3.75,
BEIS,The Insolvency Service,05/11/2020,Travel & Subsistence,Investigations & Enforcement Services,Staff Payment,900016385,5.00,
BEIS,The Insolvency Service,05/11/2020,Travel & Subsistence,Investigations & Enforcement Services,Staff Payment,900016325,8.24,
BEIS,The Insolvency Service,05/11/2020,Travel & Subsistence,Investigations & Enforcement Services,Staff Payment,900016325,3.04,
BEIS,The Insolvency Service,05/11/2020,Travel & Subsistence,Investigations & Enforcement Services,Staff Payment,900016381,99.00,
BEIS,The Insolvency Service,05/11/2020,Travel & Subsistence,Investigations & Enforcement Services,Staff Payment,900016380,13.99,
BEIS,The Insolvency Service,05/11/2020,Travel & Subsistence,Investigations & Enforcement Services,Staff Payment,900016389,47.70,
BEIS,The Insolvency Service,05/11/2020,Travel & Subsistence,Investigations & Enforcement Services,Staff Payment,900016362,5.76,
BEIS,The Insolvency Service,05/11/2020,Travel & Subsistence,Investigations & Enforcement Services,Staff Payment,900016362,14.42,
BEIS,The Insolvency Service,05/11/2020,Travel & Subsistence,Investigations & Enforcement Services,Staff Payment,900016362,7.90,
BEIS,The Insolvency Service,05/11/2020,Travel & Subsistence,Investigations & Enforcement Services,Staff Payment,900016382,32.40,
BEIS,The Insolvency Service,05/11/2020,Travel & Subsistence,Official Receiver Services,Staff Payment,900016257,12.05,
BEIS,The Insolvency Service,05/11/2020,Travel & Subsistence,Official Receiver Services,Staff Payment,900016359,26.00,
BEIS,The Insolvency Service,05/11/2020,Travel & Subsistence,Official Receiver Services,Staff Payment,900016359,9.08,
BEIS,The Insolvency Service,05/11/2020,Legal - Costs of Criminal Prosecutions and Advice,Legal Services Division,SUNDRY SUPPLIER,300024664,120.00,
BEIS,The Insolvency Service,05/11/2020,ICT,Business Service Division,Syntec Ltd,300024683,249.29,264618586
BEIS,The Insolvency Service,05/11/2020,Legal - Costs of Recovering Civil Costs Awarded,Legal Services Division,Tlt Llp,300024728,318.40,3574583240
BEIS,The Insolvency Service,05/11/2020,Legal - Costs of Civil Litigation Disqualifications,Legal Services Division,Tlt Llp,300024729,14656.40,3574583240
BEIS,The Insolvency Service,05/11/2020,Legal - Costs of Civil Litigation Disqualifications,Legal Services Division,Tlt Llp,300024730,550.00,3574583240
BEIS,The Insolvency Service,05/11/2020,Legal - Outsourced Investigation,Investigations & Enforcement Services,Tlt Llp,300024734,7869.40,3574583240
BEIS,The Insolvency Service,05/11/2020,Off-Site Storage,Official Receiver Services,Ukcloud Ltd,300024665,23143.96,172647982
BEIS,The Insolvency Service,05/11/2020,HR,People & Capability,Vita Health Group,300024662,481.57,
BEIS,The Insolvency Service,05/11/2020,Investigation & Enforcement,Official Receiver Services,Womble Bond Dickinson,300024661,383174.70,123392627
BEIS,The Insolvency Service,06/11/2020,Legal - Costs of Civil Litigation Disqualifications,Legal Services Division,Burness Paull & Williamsons Solicitors,300024731,14310.00,216218532
BEIS,The Insolvency Service,06/11/2020,Legal - Costs of Civil Litigation Disqualifications,Legal Services Division,Burness Paull & Williamsons Solicitors,300024731,406.00,216218532
BEIS,The Insolvency Service,06/11/2020,Legal - Costs of Recovering Civil Costs Awarded,Legal Services Division,Burness Paull & Williamsons Solicitors,300024733,1716.00,216218532
BEIS,The Insolvency Service,06/11/2020,Legal - Costs of Recovering Civil Costs Awarded,Legal Services Division,Burness Paull & Williamsons Solicitors,300024733,602.00,216218532
BEIS,The Insolvency Service,06/11/2020,Investigation & Enforcement,Investigations & Enforcement Services,Datel Computing Limited,300024744,1087.17,323082982
BEIS,The Insolvency Service,06/11/2020,Legal - Costs of Civil Litigation Disqualifications,Legal Services Division,Gowling Wragge Lawrence Graham  & Co,300024735,13124.90,858698838
BEIS,The Insolvency Service,06/11/2020,Legal - Costs of Civil Litigation Disqualifications,Legal Services Division,Gowling Wragge Lawrence Graham  & Co,300024735,1290.00,858698838
BEIS,The Insolvency Service,06/11/2020,Legal - Costs of Civil Litigation Disqualifications,Legal Services Division,Gowling Wragge Lawrence Graham  & Co,300024735,120.00,858698838
BEIS,The Insolvency Service,06/11/2020,Estates - Property,Finance & Commercial,GPA (C/O Montagu Evans LLP),300024765,240.00,
BEIS,The Insolvency Service,06/11/2020,Estates - Property,Finance & Commercial,GPA (C/O Montagu Evans LLP),300024766,240.00,
BEIS,The Insolvency Service,06/11/2020,Estates - Property,Finance & Commercial,GPA (C/O Montagu Evans LLP),300024767,240.00,
BEIS,The Insolvency Service,06/11/2020,Legal - Costs of Civil Litigation Disqualifications,Legal Services Division,Nine St John Street Chambers,300024726,5610.00,831704742
BEIS,The Insolvency Service,06/11/2020,Estates - Property,Finance & Commercial,Middlesbrough Council,300024769,172.34,734213854
BEIS,The Insolvency Service,06/11/2020,ICT,Digital Technology Services,Netcompany UK Ltd,300024689,16258.80,171809009
BEIS,The Insolvency Service,06/11/2020,Estates - Property,Strategy & Change,Posturite (Uk) Ltd.,300024771,158.47,583565114
BEIS,The Insolvency Service,06/11/2020,Staff Costs - Non-Perms,Strategy & Change,SmartSourcing,300024746,14577.00,788507869
BEIS,The Insolvency Service,06/11/2020,Staff Costs - Non-Perms,Strategy & Change,SmartSourcing,300024748,14520.00,788507869
BEIS,The Insolvency Service,06/11/2020,Travel & Subsistence,Official Receiver Services,Staff Payment,900016208,2.71,
BEIS,The Insolvency Service,06/11/2020,Travel & Subsistence,Official Receiver Services,Staff Payment,900016208,10.97,
BEIS,The Insolvency Service,06/11/2020,Travel & Subsistence,Official Receiver Services,Staff Payment,900016208,4.15,
BEIS,The Insolvency Service,06/11/2020,Travel & Subsistence,Official Receiver Services,Staff Payment,900016208,8.40,
BEIS,The Insolvency Service,06/11/2020,Travel & Subsistence,Official Receiver Services,Staff Payment,900016208,19.20,
BEIS,The Insolvency Service,06/11/2020,Travel & Subsistence,Investigations & Enforcement Services,Staff Payment,900016386,10.00,
BEIS,The Insolvency Service,06/11/2020,Travel & Subsistence,Investigations & Enforcement Services,Staff Payment,900016391,18.40,
BEIS,The Insolvency Service,06/11/2020,Travel & Subsistence,Investigations & Enforcement Services,Staff Payment,900016391,5.00,
BEIS,The Insolvency Service,06/11/2020,Travel & Subsistence,Investigations & Enforcement Services,Staff Payment,900016392,5.00,
BEIS,The Insolvency Service,06/11/2020,Travel & Subsistence,Investigations & Enforcement Services,Staff Payment,900016392,7.90,
BEIS,The Insolvency Service,06/11/2020,Travel & Subsistence,Investigations & Enforcement Services,Staff Payment,900016392,5.00,
BEIS,The Insolvency Service,06/11/2020,Travel & Subsistence,Investigations & Enforcement Services,Staff Payment,900016392,3.50,
BEIS,The Insolvency Service,06/11/2020,Travel & Subsistence,Investigations & Enforcement Services,Staff Payment,900016392,79.65,
BEIS,The Insolvency Service,06/11/2020,Travel & Subsistence,Investigations & Enforcement Services,Staff Payment,900016393,9.45,
BEIS,The Insolvency Service,06/11/2020,Travel & Subsistence,Investigations & Enforcement Services,Staff Payment,900016393,101.70,
BEIS,The Insolvency Service,06/11/2020,Travel & Subsistence,Investigations & Enforcement Services,Staff Payment,900016393,5.00,
BEIS,The Insolvency Service,06/11/2020,Travel & Subsistence,Investigations & Enforcement Services,Staff Payment,900016393,4.79,
BEIS,The Insolvency Service,06/11/2020,Travel & Subsistence,Investigations & Enforcement Services,Staff Payment,900016394,12.00,
BEIS,The Insolvency Service,06/11/2020,Travel & Subsistence,Investigations & Enforcement Services,Staff Payment,900016394,5.00,
BEIS,The Insolvency Service,06/11/2020,Travel & Subsistence,Investigations & Enforcement Services,Staff Payment,900016388,41.91,
BEIS,The Insolvency Service,06/11/2020,Travel & Subsistence,Investigations & Enforcement Services,Staff Payment,900016388,40.07,
BEIS,The Insolvency Service,06/11/2020,Travel & Subsistence,Investigations & Enforcement Services,Staff Payment,900016388,14.99,
BEIS,The Insolvency Service,06/11/2020,Travel & Subsistence,Investigations & Enforcement Services,Staff Payment,900016388,5.00,
BEIS,The Insolvency Service,06/11/2020,Travel & Subsistence,Investigations & Enforcement Services,Staff Payment,900016388,3.00,
BEIS,The Insolvency Service,06/11/2020,Travel & Subsistence,Investigations & Enforcement Services,Staff Payment,900016388,108.55,
BEIS,The Insolvency Service,06/11/2020,Legal - Costs of Civil Litigation Disqualifications,Legal Services Division,SUNDRY SUPPLIER,300024720,1815.00,
BEIS,The Insolvency Service,06/11/2020,Training,Legal Services Division,SUNDRY SUPPLIER,300024723,180.00,
BEIS,The Insolvency Service,06/11/2020,Training,Legal Services Division,SUNDRY SUPPLIER,300024724,90.00,
BEIS,The Insolvency Service,06/11/2020,Legal - Costs of Civil Litigation Winding Up,Investigations & Enforcement Services,Tlt Llp,300024736,18721.57,3574583240
BEIS,The Insolvency Service,06/11/2020,ICT,Digital Technology Services,Trustmarque Solutions Ltd,300024680,879.49,727348615
BEIS,The Insolvency Service,06/11/2020,ICT,Digital Technology Services,Trustmarque Solutions Ltd,300024681,1822.12,727348615
BEIS,The Insolvency Service,06/11/2020,ICT,Digital Technology Services,Ukcloud Ltd,300024677,9788.30,172647982
BEIS,The Insolvency Service,09/11/2020,Staff Costs - Non-Perms,Finance & Commercial,ALEXANDER MANN SOLUTIONS,300024792,46056.29,7444926120
BEIS,The Insolvency Service,09/11/2020,Estates - Property,Finance & Commercial,British Gas Business,300024800,58.25,684966762
BEIS,The Insolvency Service,09/11/2020,HR,People & Capability,Duradiamond Healthcare Limited,300024789,4390.70,806426440
BEIS,The Insolvency Service,09/11/2020,ICT,Digital Technology Services,Geoff Smith Associates Ltd,300024776,24763.33,813047166
BEIS,The Insolvency Service,09/11/2020,ICT,Digital Technology Services,Geoff Smith Associates Ltd,300024777,24763.33,813047166
BEIS,The Insolvency Service,09/11/2020,"Legal, Translation & Consultancy",People & Capability,Government Legal Department,300024778,6182.88,888823066
BEIS,The Insolvency Service,09/11/2020,"Legal, Translation & Consultancy",People & Capability,Government Legal Department,300024779,8664.24,888823066
BEIS,The Insolvency Service,09/11/2020,"Legal, Translation & Consultancy",People & Capability,Government Legal Department,300024780,4865.40,888823066
BEIS,The Insolvency Service,09/11/2020,"Legal, Translation & Consultancy",People & Capability,Government Legal Department,300024781,1731.72,888823066
BEIS,The Insolvency Service,09/11/2020,"Legal, Translation & Consultancy",People & Capability,Government Legal Department,300024782,1181.52,888823066
BEIS,The Insolvency Service,09/11/2020,"Legal, Translation & Consultancy",People & Capability,Government Legal Department,300024783,2473.80,888823066
BEIS,The Insolvency Service,09/11/2020,ICT,Digital Technology Services,Netcompany UK Ltd,300024688,26863.20,171809009
BEIS,The Insolvency Service,09/11/2020,"Printing, Stationary & Postage",Business Service Division,Royal Mail,300024770,1005.00,
BEIS,The Insolvency Service,09/11/2020,Staff Costs - Non-Perms,Digital Technology Services,SmartSourcing,300024176,8280.00,788507869
BEIS,The Insolvency Service,09/11/2020,Travel & Subsistence,Official Receiver Services,Staff Payment,900016409,2.85,
BEIS,The Insolvency Service,09/11/2020,Travel & Subsistence,Official Receiver Services,Staff Payment,900016409,2.14,
BEIS,The Insolvency Service,09/11/2020,Travel & Subsistence,Official Receiver Services,Staff Payment,900016409,2.14,
BEIS,The Insolvency Service,09/11/2020,Travel & Subsistence,Strategy & Change,Staff Payment,900016405,15.00,
BEIS,The Insolvency Service,09/11/2020,Travel & Subsistence,Strategy & Change,Staff Payment,900016405,5.00,
BEIS,The Insolvency Service,09/11/2020,Travel & Subsistence,Strategy & Change,Staff Payment,900016405,5.00,
BEIS,The Insolvency Service,09/11/2020,Travel & Subsistence,Strategy & Change,Staff Payment,900016405,257.40,
BEIS,The Insolvency Service,09/11/2020,Travel & Subsistence,Strategy & Change,Staff Payment,900016404,4.88,
BEIS,The Insolvency Service,09/11/2020,Travel & Subsistence,Strategy & Change,Staff Payment,900016404,3.99,
BEIS,The Insolvency Service,09/11/2020,Travel & Subsistence,Strategy & Change,Staff Payment,900016404,151.20,
BEIS,The Insolvency Service,09/11/2020,Travel & Subsistence,Official Receiver Services,Staff Payment,900016403,7.88,
BEIS,The Insolvency Service,09/11/2020,Travel & Subsistence,Official Receiver Services,Staff Payment,900016403,36.00,
BEIS,The Insolvency Service,09/11/2020,Travel & Subsistence,Official Receiver Services,Staff Payment,900016403,19.14,
BEIS,The Insolvency Service,09/11/2020,Travel & Subsistence,Investigations & Enforcement Services,Staff Payment,900016400,14.99,
BEIS,The Insolvency Service,09/11/2020,Travel & Subsistence,Investigations & Enforcement Services,Staff Payment,900016400,34.48,
BEIS,The Insolvency Service,09/11/2020,Travel & Subsistence,Investigations & Enforcement Services,Staff Payment,900016400,88.65,
BEIS,The Insolvency Service,09/11/2020,Travel & Subsistence,Investigations & Enforcement Services,Staff Payment,900016400,97.20,
BEIS,The Insolvency Service,09/11/2020,Travel & Subsistence,Investigations & Enforcement Services,Staff Payment,900016396,60.97,
BEIS,The Insolvency Service,09/11/2020,Travel & Subsistence,Investigations & Enforcement Services,Staff Payment,900016376,4.50,
BEIS,The Insolvency Service,09/11/2020,Travel & Subsistence,Investigations & Enforcement Services,Staff Payment,900016376,2.70,
BEIS,The Insolvency Service,09/11/2020,Travel & Subsistence,Investigations & Enforcement Services,Staff Payment,900016376,9.00,
BEIS,The Insolvency Service,09/11/2020,Travel & Subsistence,Investigations & Enforcement Services,Staff Payment,900016376,45.90,
BEIS,The Insolvency Service,09/11/2020,Travel & Subsistence,Investigations & Enforcement Services,Staff Payment,900016384,11.57,
BEIS,The Insolvency Service,09/11/2020,Travel & Subsistence,Investigations & Enforcement Services,Staff Payment,900016384,1.15,
BEIS,The Insolvency Service,09/11/2020,Travel & Subsistence,Investigations & Enforcement Services,Staff Payment,900016384,14.25,
BEIS,The Insolvency Service,09/11/2020,Travel & Subsistence,Investigations & Enforcement Services,Staff Payment,900016384,57.60,
BEIS,The Insolvency Service,09/11/2020,Travel & Subsistence,Investigations & Enforcement Services,Staff Payment,900016395,4.70,
BEIS,The Insolvency Service,09/11/2020,Travel & Subsistence,Investigations & Enforcement Services,Staff Payment,900016395,4.60,
BEIS,The Insolvency Service,09/11/2020,Travel & Subsistence,Investigations & Enforcement Services,Staff Payment,900016395,4.10,
BEIS,The Insolvency Service,09/11/2020,Travel & Subsistence,Investigations & Enforcement Services,Staff Payment,900016395,12.00,
BEIS,The Insolvency Service,09/11/2020,Travel & Subsistence,Investigations & Enforcement Services,Staff Payment,900016395,26.00,
BEIS,The Insolvency Service,09/11/2020,Travel & Subsistence,Investigations & Enforcement Services,Staff Payment,900016408,12.99,
BEIS,The Insolvency Service,09/11/2020,Travel & Subsistence,Investigations & Enforcement Services,Staff Payment,900016390,67.50,
BEIS,The Insolvency Service,09/11/2020,Travel & Subsistence,Finance & Commercial,Staff Payment,900016364,110.00,
BEIS,The Insolvency Service,09/11/2020,Travel & Subsistence,Finance & Commercial,Staff Payment,900016372,120.00,
BEIS,The Insolvency Service,09/11/2020,Travel & Subsistence,Official Receiver Services,Staff Payment,900016402,6.57,
BEIS,The Insolvency Service,09/11/2020,Travel & Subsistence,Official Receiver Services,Staff Payment,900016401,23.40,
BEIS,The Insolvency Service,09/11/2020,Training,Investigations & Enforcement Services,SUNDRY SUPPLIER,300024774,580.00,
BEIS,The Insolvency Service,09/11/2020,Other Costs,Official Receiver Services,The Stationery Office Ltd,300024658,84.00,662774703
BEIS,The Insolvency Service,09/11/2020,Legal - Costs of Civil Litigation Winding Up,Investigations & Enforcement Services,Tlt Llp,300024732,8005.80,3574583240
BEIS,The Insolvency Service,09/11/2020,Legal - Costs of Civil Litigation Winding Up,Investigations & Enforcement Services,Tlt Llp,300024732,562.80,3574583240
BEIS,The Insolvency Service,09/11/2020,Legal - Costs of Civil Litigation Winding Up,Investigations & Enforcement Services,Tlt Llp,300024740,10499.40,3574583240
BEIS,The Insolvency Service,09/11/2020,Legal - Costs of Civil Litigation Winding Up,Investigations & Enforcement Services,Tlt Llp,300024740,10.00,3574583240
BEIS,The Insolvency Service,10/11/2020,Legal - Costs of Criminal Prosecutions and Advice,Legal Services Division,18 Red Lion Court Chambers,300024849,1722.00,766793665
BEIS,The Insolvency Service,10/11/2020,Legal - Costs of Criminal Prosecutions and Advice,Legal Services Division,18 Red Lion Court Chambers,300024856,9165.00,766793665
BEIS,The Insolvency Service,10/11/2020,Legal - Costs of Criminal Prosecutions and Advice,Legal Services Division,18 Red Lion Court Chambers,300024857,1905.50,766793665
BEIS,The Insolvency Service,10/11/2020,Training,People & Capability,218 Strand Ltd,300024793,6700.00,974185388
BEIS,The Insolvency Service,10/11/2020,Legal - Costs of Criminal Prosecutions and Advice,Legal Services Division,9 King's Bench Walk,300024842,506.04,397241918
BEIS,The Insolvency Service,10/11/2020,ICT,Digital Technology Services,Bt Conferencing Services,300024433,32.98,
BEIS,The Insolvency Service,10/11/2020,Legal - Outsourced Investigation,Investigations & Enforcement Services,Burness Paull & Williamsons Solicitors,300024797,102.50,216218532
BEIS,The Insolvency Service,10/11/2020,Legal - Outsourced Investigation,Investigations & Enforcement Services,Burness Paull & Williamsons Solicitors,300024797,338.00,216218532
BEIS,The Insolvency Service,10/11/2020,Legal - Costs of Civil Litigation Disqualifications,Legal Services Division,Exchange Chambers,300024837,1118.33,
BEIS,The Insolvency Service,10/11/2020,ICT,Digital Technology Services,Experian Qas Ltd,300024852,9783.60,887133593
BEIS,The Insolvency Service,10/11/2020,ICT,Digital Technology Services,Experian Qas Ltd,300024853,1779.23,887133593
BEIS,The Insolvency Service,10/11/2020,Legal - Costs of Civil Litigation Disqualifications,Legal Services Division,South Square,300024835,156.00,843274916
BEIS,The Insolvency Service,10/11/2020,Legal - Costs of Civil Litigation Winding Up,Investigations & Enforcement Services,Howes Percival,300024845,701.83,119523573
BEIS,The Insolvency Service,10/11/2020,Investigation & Enforcement,Official Receiver Services,Howes Percival,300024859,693.00,119523573
BEIS,The Insolvency Service,10/11/2020,Legal - Outsourced Investigation,Investigations & Enforcement Services,Howes Percival,300024860,452.50,119523573
BEIS,The Insolvency Service,10/11/2020,Staff Costs - Non-Perms,Strategy & Change,Ibm Uk Ltd,300024791,18193.92,107328000
BEIS,The Insolvency Service,10/11/2020,Other Costs,Official Receiver Services,Insolvency Service,300024851,270.68,
BEIS,The Insolvency Service,10/11/2020,Investigation & Enforcement,Investigations & Enforcement Services,Md5 Ltd,300024816,515.00,
BEIS,The Insolvency Service,10/11/2020,Investigation & Enforcement,Investigations & Enforcement Services,Md5 Ltd,300024817,406.95,
BEIS,The Insolvency Service,10/11/2020,Investigation & Enforcement,Investigations & Enforcement Services,Md5 Ltd,300024818,11040.00,
BEIS,The Insolvency Service,10/11/2020,Legal - Costs of Civil Litigation Disqualifications,Legal Services Division,Mills & Reeve LLP,300024847,9566.40,104834588
BEIS,The Insolvency Service,10/11/2020,Legal - Costs of Civil Litigation Disqualifications,Legal Services Division,5 Stone Buildings,300024838,480.00,998486332
BEIS,The Insolvency Service,10/11/2020,Training,Legal Services Division,Mycsp Ltd,300024831,800.00,
BEIS,The Insolvency Service,10/11/2020,Legal - Costs of Criminal Prosecutions and Advice,Investigations & Enforcement Services,Pitney Bowes - Purchasepower,300024863,3.31,
BEIS,The Insolvency Service,10/11/2020,Legal - Costs of Criminal Prosecutions and Advice,Legal Services Division,Police And Crime Commissioner For Hampshire,300024855,1358.00,
BEIS,The Insolvency Service,10/11/2020,"Printing, Stationary & Postage",Business Service Division,Quadient UK Limited,300024674,9336.60,
BEIS,The Insolvency Service,10/11/2020,Legal - Costs of Civil Litigation Winding Up,Investigations & Enforcement Services,Shepherd & Wedderburn Ws (English Cases),300024858,15033.45,890559386
BEIS,The Insolvency Service,10/11/2020,Legal - Costs of Civil Litigation Winding Up,Investigations & Enforcement Services,Shepherd & Wedderburn Ws (English Cases),300024858,240.00,890559386
BEIS,The Insolvency Service,10/11/2020,Travel & Subsistence,Investigations & Enforcement Services,Staff Payment,900016407,39.60,
BEIS,The Insolvency Service,10/11/2020,Travel & Subsistence,Investigations & Enforcement Services,Staff Payment,900016407,5.00,
BEIS,The Insolvency Service,10/11/2020,Travel & Subsistence,Official Receiver Services,Staff Payment,900016410,7.50,
BEIS,The Insolvency Service,10/11/2020,Travel & Subsistence,Official Receiver Services,Staff Payment,900016410,7.50,
BEIS,The Insolvency Service,10/11/2020,Travel & Subsistence,Finance & Commercial,Staff Payment,900016412,110.00,
BEIS,The Insolvency Service,10/11/2020,Legal - Costs of Criminal Prosecutions and Advice,Legal Services Division,SUNDRY SUPPLIER,300024861,180.00,
BEIS,The Insolvency Service,10/11/2020,ICT,Digital Technology Services,Symity LTD,300024795,13440.41,192278875
BEIS,The Insolvency Service,10/11/2020,ICT,Digital Technology Services,Trustmarque Solutions Ltd,300024678,492.59,727348615
BEIS,The Insolvency Service,10/11/2020,ICT,Digital Technology Services,Trustmarque Solutions Ltd,300024679,757.37,727348615
BEIS,The Insolvency Service,10/11/2020,Investigation & Enforcement,Official Receiver Services,Womble Bond Dickinson,300024798,73.13,123392627
BEIS,The Insolvency Service,10/11/2020,Legal - Costs of Civil Litigation Winding Up,Investigations & Enforcement Services,Womble Bond Dickinson,300024812,1029.65,123392627
BEIS,The Insolvency Service,10/11/2020,Legal - Costs of Civil Litigation Winding Up,Investigations & Enforcement Services,Womble Bond Dickinson,300024812,285.02,123392627
BEIS,The Insolvency Service,11/11/2020,Legal - Costs of Recovering Civil Costs Awarded,Investigations & Enforcement Services,Clarke Willmott Solicitors,300024877,145.04,129913060
BEIS,The Insolvency Service,11/11/2020,Other Costs,Business Service Division,Equifax Ltd,300024848,60.00,565629213
BEIS,The Insolvency Service,11/11/2020,Legal - Costs of Criminal Prosecutions and Advice,Legal Services Division,Exchange Chambers,300024887,5496.44,
BEIS,The Insolvency Service,11/11/2020,Other Costs,Finance & Commercial,Government Internal Audit Agency,300024640,49000.00,
BEIS,The Insolvency Service,11/11/2020,ICT,Chief Executive Office,Granicus,300024876,1170.96,943669974
BEIS,The Insolvency Service,11/11/2020,Legal - Costs of Civil Litigation Disqualifications,Legal Services Division,Enterprise Chambers,300024889,486.00,938136900
BEIS,The Insolvency Service,11/11/2020,Legal - Costs of Recovering Civil Costs Awarded,Investigations & Enforcement Services,Marston Group Limited,300024864,396.00,795928947
BEIS,The Insolvency Service,11/11/2020,Legal - Costs of Civil Litigation Disqualifications,Legal Services Division,Selbourne Chambers,300024888,432.00,1036299146
BEIS,The Insolvency Service,11/11/2020,Staff Costs - Non-Perms,Digital Technology Services,SmartSourcing,300024747,13596.00,788507869
BEIS,The Insolvency Service,11/11/2020,Staff Costs - Non-Perms,Strategy & Change,SmartSourcing,300024801,17688.00,788507869
BEIS,The Insolvency Service,11/11/2020,Staff Costs - Non-Perms,Strategy & Change,SmartSourcing,300024807,15708.00,788507869
BEIS,The Insolvency Service,11/11/2020,Staff Costs - Non-Perms,Strategy & Change,SmartSourcing,300024809,16500.00,788507869
BEIS,The Insolvency Service,11/11/2020,Staff Costs - Non-Perms,Strategy & Change,SmartSourcing,300024813,10584.96,788507869
BEIS,The Insolvency Service,11/11/2020,Staff Costs - Non-Perms,Strategy & Change,SmartSourcing,300024814,6840.00,788507869
BEIS,The Insolvency Service,11/11/2020,Staff Costs - Non-Perms,Strategy & Change,SmartSourcing,300024815,5700.00,788507869
BEIS,The Insolvency Service,11/11/2020,Travel & Subsistence,Official Receiver Services,Staff Payment,900016414,22.50,
BEIS,The Insolvency Service,11/11/2020,Travel & Subsistence,Investigations & Enforcement Services,Staff Payment,900016416,10.40,
BEIS,The Insolvency Service,11/11/2020,Travel & Subsistence,Finance & Commercial,Staff Payment,900016417,120.00,
BEIS,The Insolvency Service,11/11/2020,Travel & Subsistence,Investigations & Enforcement Services,Staff Payment,900016340,1.90,
BEIS,The Insolvency Service,11/11/2020,Travel & Subsistence,Official Receiver Services,Staff Payment,900016413,4.70,
BEIS,The Insolvency Service,11/11/2020,Travel & Subsistence,Official Receiver Services,Staff Payment,900016413,4.70,
BEIS,The Insolvency Service,11/11/2020,Travel & Subsistence,Official Receiver Services,Staff Payment,900016413,3.70,
BEIS,The Insolvency Service,11/11/2020,Travel & Subsistence,Investigations & Enforcement Services,Staff Payment,900016411,4.56,
BEIS,The Insolvency Service,11/11/2020,Travel & Subsistence,Investigations & Enforcement Services,Staff Payment,900016411,4.56,
BEIS,The Insolvency Service,11/11/2020,Travel & Subsistence,Investigations & Enforcement Services,Staff Payment,900016411,5.09,
BEIS,The Insolvency Service,11/11/2020,Travel & Subsistence,Investigations & Enforcement Services,Staff Payment,900016411,5.25,
BEIS,The Insolvency Service,11/11/2020,Legal - Costs of Criminal Prosecutions and Advice,Legal Services Division,SUNDRY SUPPLIER,300024874,168.00,
BEIS,The Insolvency Service,11/11/2020,HR,People & Capability,Uksbs Shared Services Centre Ltd,300024794,63500.00,888825550
BEIS,The Insolvency Service,11/11/2020,Training,Investigations & Enforcement Services,Yorkshire and Humber Fraud Forum Limited,300024879,500.00,892956657
BEIS,The Insolvency Service,12/11/2020,Legal - Costs of Civil Litigation Disqualifications,Legal Services Division,18 St John Street Chambers,300024898,567.00,826858289
BEIS,The Insolvency Service,12/11/2020,Other Costs,People & Capability,Edenred (UK Group) Ltd,300025195,587.15,649503520
BEIS,The Insolvency Service,12/11/2020,Other Costs,People & Capability,Edenred (UK Group) Ltd,300025195,43.99,649503520
BEIS,The Insolvency Service,12/11/2020,"Legal, Translation & Consultancy",Strategy & Change,Gowling Wragge Lawrence Graham  & Co,300024904,600.00,858698838
BEIS,The Insolvency Service,12/11/2020,"Legal, Translation & Consultancy",Strategy & Change,Gowling Wragge Lawrence Graham  & Co,300024904,2100.00,858698838
BEIS,The Insolvency Service,12/11/2020,Travel & Subsistence,Investigations & Enforcement Services,Staff Payment,900016423,43.20,
BEIS,The Insolvency Service,12/11/2020,Travel & Subsistence,Investigations & Enforcement Services,Staff Payment,900016421,12.60,
BEIS,The Insolvency Service,12/11/2020,Travel & Subsistence,Investigations & Enforcement Services,Staff Payment,900016397,37.80,
BEIS,The Insolvency Service,12/11/2020,Travel & Subsistence,Investigations & Enforcement Services,Staff Payment,900016397,37.80,
BEIS,The Insolvency Service,12/11/2020,Travel & Subsistence,Investigations & Enforcement Services,Staff Payment,900016428,7.20,
BEIS,The Insolvency Service,12/11/2020,Travel & Subsistence,Investigations & Enforcement Services,Staff Payment,900016428,27.00,
BEIS,The Insolvency Service,12/11/2020,Travel & Subsistence,Investigations & Enforcement Services,Staff Payment,900016428,17.10,
BEIS,The Insolvency Service,12/11/2020,Travel & Subsistence,Investigations & Enforcement Services,Staff Payment,900016428,5.00,
BEIS,The Insolvency Service,12/11/2020,Travel & Subsistence,Investigations & Enforcement Services,Staff Payment,900016428,15.00,
BEIS,The Insolvency Service,12/11/2020,Travel & Subsistence,Investigations & Enforcement Services,Staff Payment,900016428,38.90,
BEIS,The Insolvency Service,12/11/2020,Travel & Subsistence,Investigations & Enforcement Services,Staff Payment,900016428,3.60,
BEIS,The Insolvency Service,12/11/2020,Travel & Subsistence,Investigations & Enforcement Services,Staff Payment,900016420,19.17,
BEIS,The Insolvency Service,12/11/2020,Travel & Subsistence,Investigations & Enforcement Services,Staff Payment,900016420,19.17,
BEIS,The Insolvency Service,12/11/2020,Travel & Subsistence,Finance & Commercial,Staff Payment,900016367,258.00,
BEIS,The Insolvency Service,13/11/2020,Estates - Property,Finance & Commercial,Castle Water Limited,300024897,1422.53,319427788
BEIS,The Insolvency Service,13/11/2020,ICT,Official Receiver Services,Kcom Group Plc,300024906,72.00,647235137
BEIS,The Insolvency Service,13/11/2020,Legal - Costs of Recovering Civil Costs Awarded,Investigations & Enforcement Services,Marston Group Limited,300024903,66.00,795928947
BEIS,The Insolvency Service,13/11/2020,Investigation & Enforcement,Investigations & Enforcement Services,Md5 Ltd,300024907,2025.00,
BEIS,The Insolvency Service,13/11/2020,Staff Costs - Non-Perms,Finance & Commercial,Pertemps Recruitment Partnership Limited,300024905,443.52,844278800
BEIS,The Insolvency Service,13/11/2020,"Printing, Stationary & Postage",Business Service Division,Royal Mail,300024882,1005.00,
BEIS,The Insolvency Service,13/11/2020,"Printing, Stationary & Postage",Business Service Division,Royal Mail,300024883,1005.00,
BEIS,The Insolvency Service,13/11/2020,Other Costs,Official Receiver Services,Sirs (Europe) Ltd,300024764,22261.61,990834974
BEIS,The Insolvency Service,13/11/2020,Staff Costs - Non-Perms,Digital Technology Services,SmartSourcing,300024745,15840.00,788507869
BEIS,The Insolvency Service,13/11/2020,Staff Costs - Non-Perms,Strategy & Change,SmartSourcing,300024902,18900.00,788507869
BEIS,The Insolvency Service,13/11/2020,Staff Costs - Non-Perms,Strategy & Change,SmartSourcing,300024918,13009.92,788507869
BEIS,The Insolvency Service,13/11/2020,Travel & Subsistence,Investigations & Enforcement Services,Staff Payment,900016324,15.60,
BEIS,The Insolvency Service,13/11/2020,Travel & Subsistence,People & Capability,Staff Payment,900016333,190.00,
BEIS,The Insolvency Service,13/11/2020,Travel & Subsistence,Investigations & Enforcement Services,Staff Payment,900016425,18.99,
BEIS,The Insolvency Service,13/11/2020,Travel & Subsistence,Investigations & Enforcement Services,Staff Payment,900016425,5.00,
BEIS,The Insolvency Service,13/11/2020,Travel & Subsistence,Investigations & Enforcement Services,Staff Payment,900016425,5.00,
BEIS,The Insolvency Service,13/11/2020,Travel & Subsistence,Investigations & Enforcement Services,Staff Payment,900016425,5.00,
BEIS,The Insolvency Service,13/11/2020,Travel & Subsistence,Investigations & Enforcement Services,Staff Payment,900016425,15.00,
BEIS,The Insolvency Service,13/11/2020,Travel & Subsistence,Investigations & Enforcement Services,Staff Payment,900016425,5.00,
BEIS,The Insolvency Service,13/11/2020,Legal - Costs of Criminal Prosecutions and Advice,Legal Services Division,SUNDRY SUPPLIER,300024885,2478.50,
BEIS,The Insolvency Service,13/11/2020,Legal - Costs of Criminal Prosecutions and Advice,Legal Services Division,SUNDRY SUPPLIER,300024894,130.30,
BEIS,The Insolvency Service,13/11/2020,Legal - Costs of Criminal Prosecutions and Advice,Legal Services Division,SUNDRY SUPPLIER,300024895,144.00,
BEIS,The Insolvency Service,13/11/2020,Legal - Costs of Criminal Prosecutions and Advice,Legal Services Division,SUNDRY SUPPLIER,300024896,144.00,
BEIS,The Insolvency Service,13/11/2020,Other Costs,Official Receiver Services,The Stationery Office Ltd,300024790,84.00,662774703
BEIS,The Insolvency Service,13/11/2020,Other Costs,Official Receiver Services,The Stationery Office Ltd,300024796,84.00,662774703
BEIS,The Insolvency Service,13/11/2020,Other Costs,Official Receiver Services,The Stationery Office Ltd,300024878,84.00,662774703
BEIS,The Insolvency Service,16/11/2020,"Printing, Stationary & Postage",Business Service Division,Banner Business Services Ltd,300024875,2371.92,731860439
BEIS,The Insolvency Service,16/11/2020,"Printing, Stationary & Postage",Business Service Division,Banner Business Services Ltd,300024875,323.70,731860439
BEIS,The Insolvency Service,16/11/2020,Legal - Costs of Civil Litigation Disqualifications,Legal Services Division,Howes Percival,300024844,12527.00,119523573
BEIS,The Insolvency Service,16/11/2020,Legal - Costs of Civil Litigation Disqualifications,Legal Services Division,Howes Percival,300024844,274.00,119523573
BEIS,The Insolvency Service,16/11/2020,Legal - Costs of Recovering Civil Costs Awarded,Legal Services Division,Howes Percival,300024846,2380.00,119523573
BEIS,The Insolvency Service,16/11/2020,Legal - Costs of Recovering Civil Costs Awarded,Legal Services Division,Howes Percival,300024846,20.00,119523573
BEIS,The Insolvency Service,16/11/2020,Staff Costs - Non-Perms,Digital Technology Services,Netcompany UK Ltd,300024686,11388.00,171809009
BEIS,The Insolvency Service,16/11/2020,ICT,Digital Technology Services,Nomensa Limited,300024184,38610.00,771727411
BEIS,The Insolvency Service,16/11/2020,Legal - Costs of Civil Litigation Disqualifications,Legal Services Division,Selbourne Chambers,300025255,1056.00,1036299146
BEIS,The Insolvency Service,16/11/2020,Legal - Costs of Civil Litigation Disqualifications,Legal Services Division,Selbourne Chambers,300025256,672.00,1036299146
BEIS,The Insolvency Service,16/11/2020,Staff Costs - Non-Perms,Digital Technology Services,SmartSourcing,300024806,13800.00,788507869
BEIS,The Insolvency Service,16/11/2020,Travel & Subsistence,Investigations & Enforcement Services,Staff Payment,900016435,7.50,
BEIS,The Insolvency Service,16/11/2020,Travel & Subsistence,Investigations & Enforcement Services,Staff Payment,900016435,31.50,
BEIS,The Insolvency Service,16/11/2020,Travel & Subsistence,Legal Services Division,Staff Payment,900016433,23.14,
BEIS,The Insolvency Service,16/11/2020,Travel & Subsistence,Legal Services Division,Staff Payment,900016433,29.46,
BEIS,The Insolvency Service,16/11/2020,Legal - Costs of Civil Litigation Disqualifications,Legal Services Division,SUNDRY SUPPLIER,300024862,1650.00,
BEIS,The Insolvency Service,16/11/2020,Legal - Costs of Civil Litigation Disqualifications,Legal Services Division,SUNDRY SUPPLIER,300024873,5.00,
BEIS,The Insolvency Service,16/11/2020,Legal - Costs of Recovering Civil Costs Awarded,Legal Services Division,Womble Bond Dickinson,300024803,3775.70,123392627
BEIS,The Insolvency Service,16/11/2020,Legal - Costs of Recovering Civil Costs Awarded,Legal Services Division,Womble Bond Dickinson,300024803,65.97,123392627
BEIS,The Insolvency Service,16/11/2020,Legal - Costs of Civil Litigation Disqualifications,Legal Services Division,Womble Bond Dickinson,300024804,150635.70,123392627
BEIS,The Insolvency Service,16/11/2020,Legal - Costs of Civil Litigation Disqualifications,Legal Services Division,Womble Bond Dickinson,300024804,34.27,123392627
BEIS,The Insolvency Service,16/11/2020,Legal - Costs of Civil Litigation Disqualifications,Legal Services Division,Womble Bond Dickinson,300024810,12320.15,123392627
BEIS,The Insolvency Service,16/11/2020,Legal - Costs of Civil Litigation Disqualifications,Legal Services Division,Womble Bond Dickinson,300024810,464.04,123392627
BEIS,The Insolvency Service,17/11/2020,Training,Business Service Division,Capita Business Services Ltd,300024670,-2355.85,618184140
BEIS,The Insolvency Service,17/11/2020,Training,People & Capability,Capita Business Services Ltd,300024854,2171.98,618184140
BEIS,The Insolvency Service,17/11/2020,Training,People & Capability,Capita Business Services Ltd,300024890,1960.07,618184140
BEIS,The Insolvency Service,17/11/2020,Estates - Property,Finance & Commercial,Cross Stone Estates Limited,300024919,6129.00,783680883
BEIS,The Insolvency Service,17/11/2020,ICT,Digital Technology Services,Nomensa Limited,300024933,359670.00,771727411
BEIS,The Insolvency Service,17/11/2020,"Printing, Stationary & Postage",Business Service Division,Royal Mail,300024914,5184.00,
BEIS,The Insolvency Service,17/11/2020,"Printing, Stationary & Postage",Business Service Division,Royal Mail,300024915,216.00,
BEIS,The Insolvency Service,17/11/2020,Travel & Subsistence,Official Receiver Services,Staff Payment,900016437,5.20,
BEIS,The Insolvency Service,17/11/2020,Travel & Subsistence,Official Receiver Services,Staff Payment,900016437,0.65,
BEIS,The Insolvency Service,17/11/2020,Travel & Subsistence,Official Receiver Services,Staff Payment,900016437,0.65,
BEIS,The Insolvency Service,17/11/2020,Travel & Subsistence,Official Receiver Services,Staff Payment,900016437,4.00,
BEIS,The Insolvency Service,17/11/2020,Travel & Subsistence,Business Service Division,Staff Payment,900016434,12.25,
BEIS,The Insolvency Service,17/11/2020,Travel & Subsistence,Investigations & Enforcement Services,Staff Payment,900016438,16.50,
BEIS,The Insolvency Service,17/11/2020,Travel & Subsistence,Investigations & Enforcement Services,Staff Payment,900016438,5.99,
BEIS,The Insolvency Service,17/11/2020,Travel & Subsistence,Business Service Division,Staff Payment,900016343,0.89,
BEIS,The Insolvency Service,17/11/2020,Other Costs,Strategy & Change,SUNDRY SUPPLIER,300024931,623.00,
BEIS,The Insolvency Service,18/11/2020,Staff Costs - Non-Perms,Digital Technology Services,Advanced 365 Limited,300024923,17910.00,927547983
BEIS,The Insolvency Service,18/11/2020,Training,Finance & Commercial,Capita Business Services Ltd,300024969,421.63,618184140
BEIS,The Insolvency Service,18/11/2020,Estates - Property,Finance & Commercial,Cbre Limited,300025010,239658.82,
BEIS,The Insolvency Service,18/11/2020,Estates - Property,Finance & Commercial,E.On,300025003,545.29,559097889
BEIS,The Insolvency Service,18/11/2020,"Legal, Translation & Consultancy",Strategy & Change,Gowling Wragge Lawrence Graham  & Co,300024775,3000.00,858698838
BEIS,The Insolvency Service,18/11/2020,"Legal, Translation & Consultancy",Strategy & Change,Gowling Wragge Lawrence Graham  & Co,300024775,2520.00,858698838
BEIS,The Insolvency Service,18/11/2020,Estates - Property,Finance & Commercial,Prydis Support Ltd,300024917,1216.42,974841283
BEIS,The Insolvency Service,18/11/2020,Legal - Costs of Civil Litigation Disqualifications,Legal Services Division,Selbourne Chambers,300025258,432.00,1036299146
BEIS,The Insolvency Service,18/11/2020,Staff Costs - Non-Perms,Digital Technology Services,SmartSourcing,300024805,12000.00,788507869
BEIS,The Insolvency Service,18/11/2020,Staff Costs - Non-Perms,Digital Technology Services,SmartSourcing,300024808,15444.00,788507869
BEIS,The Insolvency Service,18/11/2020,Travel & Subsistence,Investigations & Enforcement Services,Staff Payment,900016446,8.80,
BEIS,The Insolvency Service,18/11/2020,Travel & Subsistence,Investigations & Enforcement Services,Staff Payment,900016446,7.00,
BEIS,The Insolvency Service,18/11/2020,Travel & Subsistence,Investigations & Enforcement Services,Staff Payment,900016447,6.70,
BEIS,The Insolvency Service,18/11/2020,Travel & Subsistence,Investigations & Enforcement Services,Staff Payment,900016447,7.00,
BEIS,The Insolvency Service,18/11/2020,Travel & Subsistence,Investigations & Enforcement Services,Staff Payment,900016447,6.70,
BEIS,The Insolvency Service,18/11/2020,Travel & Subsistence,Investigations & Enforcement Services,Staff Payment,900016447,7.00,
BEIS,The Insolvency Service,18/11/2020,Travel & Subsistence,Strategy & Change,Staff Payment,900016443,279.00,
BEIS,The Insolvency Service,18/11/2020,Travel & Subsistence,Strategy & Change,Staff Payment,900016443,15.00,
BEIS,The Insolvency Service,18/11/2020,Travel & Subsistence,Strategy & Change,Staff Payment,900016443,5.00,
BEIS,The Insolvency Service,18/11/2020,Travel & Subsistence,Strategy & Change,Staff Payment,900016443,5.00,
BEIS,The Insolvency Service,18/11/2020,Travel & Subsistence,Strategy & Change,Staff Payment,900016443,6.70,
BEIS,The Insolvency Service,18/11/2020,Travel & Subsistence,Official Receiver Services,Staff Payment,900016307,6.88,
BEIS,The Insolvency Service,18/11/2020,Travel & Subsistence,Official Receiver Services,Staff Payment,900016387,2.14,
BEIS,The Insolvency Service,18/11/2020,Travel & Subsistence,Official Receiver Services,Staff Payment,900016387,4.20,
BEIS,The Insolvency Service,18/11/2020,Travel & Subsistence,Official Receiver Services,Staff Payment,900016426,3.68,
BEIS,The Insolvency Service,18/11/2020,Travel & Subsistence,Official Receiver Services,Staff Payment,900016439,1.76,
BEIS,The Insolvency Service,18/11/2020,Travel & Subsistence,Digital Technology Services,Staff Payment,900016440,117.90,
BEIS,The Insolvency Service,18/11/2020,Legal - Costs of Civil Litigation Disqualifications,Legal Services Division,SUNDRY SUPPLIER,300025247,6072.00,
BEIS,The Insolvency Service,18/11/2020,Legal - Costs of Civil Litigation Disqualifications,Legal Services Division,SUNDRY SUPPLIER,300025248,2277.00,
BEIS,The Insolvency Service,18/11/2020,"Printing, Stationary & Postage",Legal Services Division,Thomson Reuters Professional Uk Ltd,300024997,1654.80,
BEIS,The Insolvency Service,18/11/2020,ICT,Digital Technology Services,Vodafone - Cable & Wireless Communications,300024922,240.00,569953277
BEIS,The Insolvency Service,19/11/2020,Legal - Costs of Criminal Prosecutions and Advice,Legal Services Division,6 Kings Bench Walk,300025049,5533.14,782714411
BEIS,The Insolvency Service,19/11/2020,Staff Costs - Non-Perms,Finance & Commercial,ALEXANDER MANN SOLUTIONS,300024972,40804.98,7444926120
BEIS,The Insolvency Service,19/11/2020,Staff Costs - Non-Perms,Finance & Commercial,ALEXANDER MANN SOLUTIONS,300025008,-1232.38,7444926120
BEIS,The Insolvency Service,19/11/2020,Off-Site Storage,Official Receiver Services,Archive Management Systems Ltd,300025007,755.22,292556040
BEIS,The Insolvency Service,19/11/2020,Estates - Property,Finance & Commercial,Avison Young,300025047,5025.60,894545868
BEIS,The Insolvency Service,19/11/2020,Training,People & Capability,Beis - Dept. For Business Innovation & Skills,300025006,775.00,888825550
BEIS,The Insolvency Service,19/11/2020,Training,Finance & Commercial,Blackburn College - Dom,300024971,2684.00,598248188
BEIS,The Insolvency Service,19/11/2020,HR,Business Service Division,Cabinet Office,300025035,1152.00,888801080
BEIS,The Insolvency Service,19/11/2020,Training,People & Capability,Capita Business Services Ltd,300024970,417.11,618184140
BEIS,The Insolvency Service,19/11/2020,Estates - Property,Finance & Commercial,Cbre Limited,300025009,71721.96,
BEIS,The Insolvency Service,19/11/2020,Legal - Costs of Recovering Civil Costs Awarded,Official Receiver Services,Clarke Willmott Solicitors,300025038,36960.38,129913060
BEIS,The Insolvency Service,19/11/2020,"Legal, Translation & Consultancy",Finance & Commercial,Deloitte LLP,300025039,11300.00,809707706
BEIS,The Insolvency Service,19/11/2020,Legal - Costs of Civil Litigation Disqualifications,Legal Services Division,Selbourne Chambers,300025253,1543.97,1036299146
BEIS,The Insolvency Service,19/11/2020,Legal - Costs of Civil Litigation Disqualifications,Legal Services Division,Selbourne Chambers,300025257,1488.00,1036299146
BEIS,The Insolvency Service,19/11/2020,Travel & Subsistence,Investigations & Enforcement Services,Staff Payment,900016448,5.00,
BEIS,The Insolvency Service,19/11/2020,Other Costs,Business Service Division,SUNDRY SUPPLIER,300025004,100.00,
BEIS,The Insolvency Service,19/11/2020,Other Costs,Business Service Division,SUNDRY SUPPLIER,300025005,50.00,
BEIS,The Insolvency Service,19/11/2020,ICT,Strategy & Change,Symity LTD,300025037,1452.00,192278875
BEIS,The Insolvency Service,20/11/2020,ICT,Digital Technology Services,Advanced 365 Limited,300025088,26019.74,927547983
BEIS,The Insolvency Service,20/11/2020,Estates - Property,Finance & Commercial,Avison Young,300024932,-2336.40,657719590
BEIS,The Insolvency Service,20/11/2020,Estates - Property,Finance & Commercial,Avison Young,300025080,90225.00,657719590
BEIS,The Insolvency Service,20/11/2020,Estates - Property,Finance & Commercial,Brighton & Hove City Council,300025061,7139.46,
BEIS,The Insolvency Service,20/11/2020,Estates - Property,Finance & Commercial,British Gas Business,300025079,8.70,684966762
BEIS,The Insolvency Service,20/11/2020,Estates - Property,Finance & Commercial,British Gas Business,300025079,21.78,684966762
BEIS,The Insolvency Service,20/11/2020,"Legal, Translation & Consultancy",Official Receiver Services,Government Legal Department,300025087,7930.37,888823066
BEIS,The Insolvency Service,20/11/2020,Training,Finance & Commercial,Mental Health First Aid England (MHFA),300024929,1750.00,981190607
BEIS,The Insolvency Service,20/11/2020,Training,Finance & Commercial,Mental Health First Aid England (MHFA),300024929,450.00,981190607
BEIS,The Insolvency Service,20/11/2020,ICT,Digital Technology Services,Ricoh Uk Limited,300025048,18367.04,
BEIS,The Insolvency Service,20/11/2020,ICT,Finance & Commercial,Softcat Plc,300024964,25650.00,491848503
BEIS,The Insolvency Service,20/11/2020,Travel & Subsistence,Official Receiver Services,Staff Payment,900016328,40.95,
BEIS,The Insolvency Service,20/11/2020,Travel & Subsistence,Official Receiver Services,Staff Payment,900016328,2.00,
BEIS,The Insolvency Service,20/11/2020,Travel & Subsistence,Investigations & Enforcement Services,Staff Payment,900016213,79.96,
BEIS,The Insolvency Service,20/11/2020,Travel & Subsistence,Investigations & Enforcement Services,Staff Payment,900016347,143.99,
BEIS,The Insolvency Service,20/11/2020,Travel & Subsistence,Investigations & Enforcement Services,Staff Payment,900016450,7.99,
BEIS,The Insolvency Service,20/11/2020,Travel & Subsistence,Official Receiver Services,Staff Payment,900016461,1.40,
BEIS,The Insolvency Service,20/11/2020,Travel & Subsistence,Official Receiver Services,Staff Payment,900016461,4.25,
BEIS,The Insolvency Service,20/11/2020,Travel & Subsistence,Official Receiver Services,Staff Payment,900016461,1.15,
BEIS,The Insolvency Service,20/11/2020,Travel & Subsistence,Official Receiver Services,Staff Payment,900016461,8.40,
BEIS,The Insolvency Service,20/11/2020,Travel & Subsistence,Investigations & Enforcement Services,Staff Payment,900016451,5.00,
BEIS,The Insolvency Service,20/11/2020,Travel & Subsistence,Official Receiver Services,Staff Payment,900016445,9.90,
BEIS,The Insolvency Service,20/11/2020,Travel & Subsistence,Finance & Commercial,Staff Payment,900016452,120.00,
BEIS,The Insolvency Service,20/11/2020,Other Costs,Business Service Division,SUNDRY SUPPLIER,300025014,100.00,
BEIS,The Insolvency Service,20/11/2020,Other Costs,Official Receiver Services,The Stationery Office Ltd,300024966,84.00,662774703
BEIS,The Insolvency Service,20/11/2020,Other Costs,Official Receiver Services,The Stationery Office Ltd,300024967,84.00,662774703
BEIS,The Insolvency Service,20/11/2020,Other Costs,Official Receiver Services,The Stationery Office Ltd,300024968,84.00,662774703
BEIS,The Insolvency Service,23/11/2020,Staff Costs - Non-Perms,Finance & Commercial,ALEXANDER MANN SOLUTIONS,300025110,54614.52,7444926120
BEIS,The Insolvency Service,23/11/2020,Estates - Property,Finance & Commercial,Avison Young,300025081,217374.92,894545868
BEIS,The Insolvency Service,23/11/2020,ICT,Digital Technology Services,Ee Ltd,300025091,891.59,771592016
BEIS,The Insolvency Service,23/11/2020,Legal - Costs of Civil Litigation Disqualifications,Legal Services Division,Exchange Chambers,300025128,878.17,
BEIS,The Insolvency Service,23/11/2020,Legal - Costs of Criminal Prosecutions and Advice,Legal Services Division,Exchange Chambers,300025130,420.00,
BEIS,The Insolvency Service,23/11/2020,Estates - Property,Finance & Commercial,GPA (C/O Montagu Evans LLP),300025109,5965.25,
BEIS,The Insolvency Service,23/11/2020,Legal - Costs of Civil Litigation Disqualifications,Legal Services Division,Selbourne Chambers,300025127,631.97,1036299146
BEIS,The Insolvency Service,23/11/2020,Legal - Costs of Civil Litigation Disqualifications,Legal Services Division,Selbourne Chambers,300025129,960.00,1036299146
BEIS,The Insolvency Service,23/11/2020,Legal - Costs of Civil Litigation Disqualifications,Legal Services Division,Selbourne Chambers,300025131,408.00,1036299146
BEIS,The Insolvency Service,23/11/2020,Legal - Costs of Civil Litigation Disqualifications,Legal Services Division,Selbourne Chambers,300025132,384.01,1036299146
BEIS,The Insolvency Service,23/11/2020,Staff Costs - Non-Perms,Strategy & Change,SmartSourcing,300025090,6600.00,788507869
BEIS,The Insolvency Service,23/11/2020,Travel & Subsistence,Investigations & Enforcement Services,Staff Payment,900016463,14.00,
BEIS,The Insolvency Service,23/11/2020,Travel & Subsistence,Investigations & Enforcement Services,Staff Payment,900016456,9.50,
BEIS,The Insolvency Service,23/11/2020,Travel & Subsistence,Investigations & Enforcement Services,Staff Payment,900016456,45.00,
BEIS,The Insolvency Service,23/11/2020,Travel & Subsistence,Official Receiver Services,Staff Payment,900016305,4.00,
BEIS,The Insolvency Service,23/11/2020,Travel & Subsistence,Official Receiver Services,Staff Payment,900016305,0.65,
BEIS,The Insolvency Service,23/11/2020,Travel & Subsistence,Official Receiver Services,Staff Payment,900016305,3.10,
BEIS,The Insolvency Service,23/11/2020,Travel & Subsistence,Official Receiver Services,Staff Payment,900016454,3.30,
BEIS,The Insolvency Service,23/11/2020,Travel & Subsistence,Official Receiver Services,Staff Payment,900016455,10.89,
BEIS,The Insolvency Service,23/11/2020,Travel & Subsistence,Official Receiver Services,Staff Payment,900016431,3.00,
BEIS,The Insolvency Service,23/11/2020,Travel & Subsistence,Official Receiver Services,Staff Payment,900016431,4.00,
BEIS,The Insolvency Service,23/11/2020,Travel & Subsistence,Official Receiver Services,Staff Payment,900016431,3.10,
BEIS,The Insolvency Service,23/11/2020,Travel & Subsistence,Official Receiver Services,Staff Payment,900016436,27.00,
BEIS,The Insolvency Service,23/11/2020,Travel & Subsistence,Investigations & Enforcement Services,Staff Payment,900016453,36.00,
BEIS,The Insolvency Service,23/11/2020,Travel & Subsistence,Official Receiver Services,Staff Payment,900016418,11.65,
BEIS,The Insolvency Service,23/11/2020,Travel & Subsistence,Official Receiver Services,Staff Payment,900016430,5.50,
BEIS,The Insolvency Service,23/11/2020,Travel & Subsistence,Official Receiver Services,Staff Payment,900016441,42.42,
BEIS,The Insolvency Service,24/11/2020,ICT,Digital Technology Services,Insight Direct (UK) Ltd,300025125,96912.02,746075129
BEIS,The Insolvency Service,24/11/2020,Staff Costs - Non-Perms,Finance & Commercial,Pertemps Recruitment Partnership Limited,300025084,225.79,844278800
BEIS,The Insolvency Service,24/11/2020,"Printing, Stationary & Postage",Business Service Division,Royal Mail,300025002,2376.00,
BEIS,The Insolvency Service,24/11/2020,Staff Costs - Non-Perms,Strategy & Change,SmartSourcing,300024802,17687.21,788507869
BEIS,The Insolvency Service,24/11/2020,Travel & Subsistence,Official Receiver Services,Staff Payment,900016471,2.60,
BEIS,The Insolvency Service,24/11/2020,Travel & Subsistence,Official Receiver Services,Staff Payment,900016471,1.64,
BEIS,The Insolvency Service,24/11/2020,Travel & Subsistence,Official Receiver Services,Staff Payment,900016471,0.65,
BEIS,The Insolvency Service,24/11/2020,Travel & Subsistence,Investigations & Enforcement Services,Staff Payment,900016473,59.40,
BEIS,The Insolvency Service,24/11/2020,Travel & Subsistence,Investigations & Enforcement Services,Staff Payment,900016473,5.00,
BEIS,The Insolvency Service,24/11/2020,Travel & Subsistence,Investigations & Enforcement Services,Staff Payment,900016462,12.96,
BEIS,The Insolvency Service,24/11/2020,Travel & Subsistence,Investigations & Enforcement Services,Staff Payment,900016462,9.08,
BEIS,The Insolvency Service,25/11/2020,Estates - Property,Business Service Division,Arc Business Interiors,300025151,32028.12,857128506
BEIS,The Insolvency Service,25/11/2020,Training,Finance & Commercial,Capita Business Services Ltd,300025124,307.31,618184140
BEIS,The Insolvency Service,25/11/2020,ICT,Digital Technology Services,Daisy Corporate Services Trading Limited,300025041,22140.01,722471355
BEIS,The Insolvency Service,25/11/2020,Off-Site Storage,Official Receiver Services,Restore Plc (Records Management),300025111,7166.39,843863011
BEIS,The Insolvency Service,25/11/2020,Staff Costs - Non-Perms,Strategy & Change,Ricoh Uk Limited,300024928,96.00,
BEIS,The Insolvency Service,25/11/2020,Travel & Subsistence,Investigations & Enforcement Services,Staff Payment,900016432,52.65,
BEIS,The Insolvency Service,25/11/2020,Travel & Subsistence,Investigations & Enforcement Services,Staff Payment,900016429,7.00,
BEIS,The Insolvency Service,25/11/2020,Travel & Subsistence,Investigations & Enforcement Services,Staff Payment,900016480,1.52,
BEIS,The Insolvency Service,25/11/2020,Travel & Subsistence,Investigations & Enforcement Services,Staff Payment,900016464,2.50,
BEIS,The Insolvency Service,25/11/2020,Travel & Subsistence,Investigations & Enforcement Services,Staff Payment,900016464,54.00,
BEIS,The Insolvency Service,25/11/2020,Travel & Subsistence,Investigations & Enforcement Services,Staff Payment,900016464,5.00,
BEIS,The Insolvency Service,25/11/2020,Travel & Subsistence,Official Receiver Services,Staff Payment,900016467,34.72,
BEIS,The Insolvency Service,25/11/2020,Investigation & Enforcement,Legal Services Division,SUNDRY SUPPLIER,300025123,31.57,
BEIS,The Insolvency Service,25/11/2020,Legal - Costs of Civil Litigation Disqualifications,Legal Services Division,SUNDRY SUPPLIER,300025126,13.57,
BEIS,The Insolvency Service,25/11/2020,ICT,Digital Technology Services,Telesis Limited,300024434,203.30,221442453
BEIS,The Insolvency Service,26/11/2020,ICT,Digital Technology Services,Bang Communications,300025153,14400.00,569978254
BEIS,The Insolvency Service,26/11/2020,ICT,Digital Technology Services,Gamma Business Communications Ltd,300024178,190.90,823820344
BEIS,The Insolvency Service,26/11/2020,ICT,Digital Technology Services,Gamma Business Communications Ltd,300024881,115.91,823820344
BEIS,The Insolvency Service,26/11/2020,Estates - Property,Finance & Commercial,GPA (C/O Montagu Evans LLP),300025150,22683.08,
BEIS,The Insolvency Service,26/11/2020,Estates - Property,Finance & Commercial,GPA (C/O Montagu Evans LLP),300025152,10131.65,
BEIS,The Insolvency Service,26/11/2020,Estates - Property,Finance & Commercial,GPA (C/O Montagu Evans LLP),300025190,240.00,
BEIS,The Insolvency Service,26/11/2020,Staff Costs - Non-Perms,Strategy & Change,SmartSourcing,300025230,12780.00,788507869
BEIS,The Insolvency Service,26/11/2020,Travel & Subsistence,Investigations & Enforcement Services,Staff Payment,900016466,7.50,
BEIS,The Insolvency Service,26/11/2020,Travel & Subsistence,Official Receiver Services,Staff Payment,900016476,38.70,
BEIS,The Insolvency Service,26/11/2020,Travel & Subsistence,Investigations & Enforcement Services,Staff Payment,900015771,2.75,
BEIS,The Insolvency Service,26/11/2020,Travel & Subsistence,Official Receiver Services,Staff Payment,900016477,18.90,
BEIS,The Insolvency Service,26/11/2020,Other Costs,Investigations & Enforcement Services,Think Different Events Ltd,300025189,860.00,
BEIS,The Insolvency Service,27/11/2020,HR,People & Capability,Duradiamond Healthcare Limited,300025117,292.60,806426440
BEIS,The Insolvency Service,27/11/2020,"Legal, Translation & Consultancy",People & Capability,Government Legal Department,300025120,8851.20,888823066
BEIS,The Insolvency Service,27/11/2020,"Legal, Translation & Consultancy",People & Capability,Government Legal Department,300025121,1610.88,888823066
BEIS,The Insolvency Service,27/11/2020,Legal - Costs of Recovering Civil Costs Awarded,Legal Services Division,Gowling Wragge Lawrence Graham  & Co,300025203,9914.10,858698838
BEIS,The Insolvency Service,27/11/2020,Estates - Property,Finance & Commercial,GPA (C/O Montagu Evans LLP),300025204,240.00,
BEIS,The Insolvency Service,27/11/2020,Estates - Property,Finance & Commercial,GPA (C/O Montagu Evans LLP),300025206,240.00,
BEIS,The Insolvency Service,27/11/2020,Estates - Property,Finance & Commercial,GPA (C/O Montagu Evans LLP),300025207,240.00,
BEIS,The Insolvency Service,27/11/2020,Estates - Property,Finance & Commercial,GPA (C/O Montagu Evans LLP),300025208,240.00,
BEIS,The Insolvency Service,27/11/2020,ICT,Strategy & Change,Insight Direct (UK) Ltd,300025200,4218.48,746075129
BEIS,The Insolvency Service,27/11/2020,HR,Strategy & Change,Office for National Statistics (ONS),300025198,2000.00,
BEIS,The Insolvency Service,27/11/2020,Staff Costs - Non-Perms,Finance & Commercial,Pertemps Recruitment Partnership Limited,300025186,564.48,844278800
BEIS,The Insolvency Service,27/11/2020,Legal - Costs of Criminal Prosecutions and Advice,Investigations & Enforcement Services,Pitney Bowes - Purchasepower,300025213,6.00,
BEIS,The Insolvency Service,27/11/2020,Travel & Subsistence,Investigations & Enforcement Services,Staff Payment,900016479,18.00,
BEIS,The Insolvency Service,27/11/2020,Travel & Subsistence,Investigations & Enforcement Services,Staff Payment,900016479,10.00,
BEIS,The Insolvency Service,27/11/2020,Travel & Subsistence,Investigations & Enforcement Services,Staff Payment,900016479,14.55,
BEIS,The Insolvency Service,27/11/2020,Travel & Subsistence,Investigations & Enforcement Services,Staff Payment,900016479,13.50,
BEIS,The Insolvency Service,27/11/2020,Travel & Subsistence,Investigations & Enforcement Services,Staff Payment,900016479,4.65,
BEIS,The Insolvency Service,27/11/2020,Travel & Subsistence,Investigations & Enforcement Services,Staff Payment,900016479,20.00,
BEIS,The Insolvency Service,27/11/2020,Travel & Subsistence,Investigations & Enforcement Services,Staff Payment,900016479,5.90,
BEIS,The Insolvency Service,27/11/2020,Travel & Subsistence,Investigations & Enforcement Services,Staff Payment,900016479,5.00,
BEIS,The Insolvency Service,27/11/2020,Travel & Subsistence,Investigations & Enforcement Services,Staff Payment,900016479,11.59,
BEIS,The Insolvency Service,27/11/2020,Travel & Subsistence,Investigations & Enforcement Services,Staff Payment,900016479,3.15,
BEIS,The Insolvency Service,27/11/2020,Travel & Subsistence,Investigations & Enforcement Services,Staff Payment,900016479,18.00,
BEIS,The Insolvency Service,27/11/2020,Travel & Subsistence,Investigations & Enforcement Services,Staff Payment,900016479,50.15,
BEIS,The Insolvency Service,27/11/2020,Travel & Subsistence,Investigations & Enforcement Services,Staff Payment,900016479,7.46,
BEIS,The Insolvency Service,27/11/2020,Travel & Subsistence,Investigations & Enforcement Services,Staff Payment,900016479,2.82,
BEIS,The Insolvency Service,27/11/2020,Travel & Subsistence,Official Receiver Services,Staff Payment,900016481,4.80,
BEIS,The Insolvency Service,27/11/2020,Travel & Subsistence,Official Receiver Services,Staff Payment,900016481,11.00,
BEIS,The Insolvency Service,27/11/2020,Travel & Subsistence,Digital Technology Services,Staff Payment,900016281,3.70,
BEIS,The Insolvency Service,27/11/2020,Travel & Subsistence,Digital Technology Services,Staff Payment,900016281,3.70,
BEIS,The Insolvency Service,27/11/2020,Travel & Subsistence,Digital Technology Services,Staff Payment,900016281,4.59,
BEIS,The Insolvency Service,27/11/2020,Travel & Subsistence,Digital Technology Services,Staff Payment,900016281,4.59,
BEIS,The Insolvency Service,27/11/2020,Travel & Subsistence,Official Receiver Services,Staff Payment,900016457,3.00,
BEIS,The Insolvency Service,27/11/2020,Travel & Subsistence,Official Receiver Services,Staff Payment,900016457,22.50,
BEIS,The Insolvency Service,27/11/2020,Travel & Subsistence,Official Receiver Services,Staff Payment,900016457,20.25,
BEIS,The Insolvency Service,27/11/2020,Travel & Subsistence,Official Receiver Services,Staff Payment,900016459,1.00,
BEIS,The Insolvency Service,27/11/2020,Travel & Subsistence,Official Receiver Services,Staff Payment,900016459,32.40,
BEIS,The Insolvency Service,27/11/2020,Travel & Subsistence,Official Receiver Services,Staff Payment,900016460,1.00,
BEIS,The Insolvency Service,27/11/2020,Travel & Subsistence,Official Receiver Services,Staff Payment,900016460,32.40,
BEIS,The Insolvency Service,27/11/2020,Travel & Subsistence,Investigations & Enforcement Services,Staff Payment,900016056,2.82,
BEIS,The Insolvency Service,27/11/2020,Travel & Subsistence,Investigations & Enforcement Services,Staff Payment,900016056,1.30,
BEIS,The Insolvency Service,27/11/2020,Travel & Subsistence,Investigations & Enforcement Services,Staff Payment,900016056,5.20,
BEIS,The Insolvency Service,27/11/2020,Travel & Subsistence,Investigations & Enforcement Services,Staff Payment,900016056,2.60,
BEIS,The Insolvency Service,27/11/2020,Travel & Subsistence,Investigations & Enforcement Services,Staff Payment,900016056,6.84,
BEIS,The Insolvency Service,27/11/2020,"Legal, Translation & Consultancy",Official Receiver Services,SUNDRY SUPPLIER,300025197,139.99,
BEIS,The Insolvency Service,27/11/2020,ICT,Digital Technology Services,Symity LTD,300025154,1800.00,192278875
BEIS,The Insolvency Service,30/11/2020,Legal - Costs of Civil Litigation Disqualifications,Legal Services Division,18 St John Street Chambers,300025246,937.20,826858289
BEIS,The Insolvency Service,30/11/2020,ICT,Digital Technology Services,Advanced 365 Limited,300024927,178204.61,927547983
BEIS,The Insolvency Service,30/11/2020,ICT,Digital Technology Services,Advanced 365 Limited,300025232,1209.60,927547983
BEIS,The Insolvency Service,30/11/2020,ICT,Digital Technology Services,Agilisys Ltd,300025239,426756.54,791711713
BEIS,The Insolvency Service,30/11/2020,HR,Business Service Division,Cabinet Office,300025238,884.50,888801080
BEIS,The Insolvency Service,30/11/2020,Training,People & Capability,Capita Business Services Ltd,300025193,-5534.85,618184140
BEIS,The Insolvency Service,30/11/2020,Legal - Costs of Civil Litigation Disqualifications,Legal Services Division,Enterprise Chambers,300025249,324.00,107042165
BEIS,The Insolvency Service,30/11/2020,Legal - Costs of Civil Litigation Disqualifications,Legal Services Division,Enterprise Chambers,300025250,432.00,107042165
BEIS,The Insolvency Service,30/11/2020,Investigation & Enforcement,Investigations & Enforcement Services,Datel Computing Limited,300025188,328.00,323082982
BEIS,The Insolvency Service,30/11/2020,Other Costs,People & Capability,Edenred (UK Group) Ltd,300025194,-680.20,649503520
BEIS,The Insolvency Service,30/11/2020,Legal - Costs of Criminal Prosecutions and Advice,Legal Services Division,Government Legal Department,300025231,1237.68,888823066
BEIS,The Insolvency Service,30/11/2020,ICT,Digital Technology Services,Insight Direct (UK) Ltd,300025199,7387.68,746075129
BEIS,The Insolvency Service,30/11/2020,Other Costs,Official Receiver Services,Insolvency Service,300025234,8.01,
BEIS,The Insolvency Service,30/11/2020,Legal - Costs of Civil Litigation Disqualifications,Legal Services Division,South Square,300025259,854.40,994806956
BEIS,The Insolvency Service,30/11/2020,Estates - Property,Finance & Commercial,Montagu Evans LLP,300025240,40697.62,888800181
BEIS,The Insolvency Service,30/11/2020,Estates - Property,Finance & Commercial,Montagu Evans LLP,300025240,37943.10,888800181
BEIS,The Insolvency Service,30/11/2020,Estates - Property,Finance & Commercial,Montagu Evans LLP,300025241,13884.07,888800181
BEIS,The Insolvency Service,30/11/2020,Estates - Property,Finance & Commercial,Montagu Evans LLP,300025241,12647.70,888800181
BEIS,The Insolvency Service,30/11/2020,Estates - Property,Finance & Commercial,Montagu Evans LLP,300025242,-2423.75,888800181
BEIS,The Insolvency Service,30/11/2020,Estates - Property,Finance & Commercial,Montagu Evans LLP,300025243,148639.50,888800181
BEIS,The Insolvency Service,30/11/2020,Legal - Outsourced Investigation,Official Receiver Services,Pricewaterhouse Coopers LLP,300025158,449644.80,243823957
BEIS,The Insolvency Service,30/11/2020,Legal - Costs of Civil Litigation Disqualifications,Legal Services Division,Selbourne Chambers,300025254,471.94,1036299146
BEIS,The Insolvency Service,30/11/2020,Legal - Costs of Civil Litigation Disqualifications,Legal Services Division,St Philips Barristers,300025252,1056.00,614053968
BEIS,The Insolvency Service,30/11/2020,Travel & Subsistence,Investigations & Enforcement Services,Staff Payment,900016486,20.00,
BEIS,The Insolvency Service,30/11/2020,Travel & Subsistence,Investigations & Enforcement Services,Staff Payment,900016486,10.60,
BEIS,The Insolvency Service,30/11/2020,Travel & Subsistence,Investigations & Enforcement Services,Staff Payment,900016490,55.26,
BEIS,The Insolvency Service,30/11/2020,Travel & Subsistence,Investigations & Enforcement Services,Staff Payment,900016490,1.60,
BEIS,The Insolvency Service,30/11/2020,Travel & Subsistence,Investigations & Enforcement Services,Staff Payment,900016490,5.00,
BEIS,The Insolvency Service,30/11/2020,Travel & Subsistence,Investigations & Enforcement Services,Staff Payment,900016485,7.50,
BEIS,The Insolvency Service,30/11/2020,Travel & Subsistence,Investigations & Enforcement Services,Staff Payment,900016487,50.40,
BEIS,The Insolvency Service,30/11/2020,Travel & Subsistence,Official Receiver Services,Staff Payment,900016483,4.60,
BEIS,The Insolvency Service,30/11/2020,Travel & Subsistence,Official Receiver Services,Staff Payment,900016483,14.40,
BEIS,The Insolvency Service,30/11/2020,Travel & Subsistence,Official Receiver Services,Staff Payment,900016483,14.40,
BEIS,The Insolvency Service,30/11/2020,Travel & Subsistence,Investigations & Enforcement Services,Staff Payment,900016422,6.99,
BEIS,The Insolvency Service,30/11/2020,Travel & Subsistence,Investigations & Enforcement Services,Staff Payment,900016383,6.75,
BEIS,The Insolvency Service,30/11/2020,Travel & Subsistence,Investigations & Enforcement Services,Staff Payment,900016383,5.00,
BEIS,The Insolvency Service,30/11/2020,Travel & Subsistence,Investigations & Enforcement Services,Staff Payment,900016383,5.00,
BEIS,The Insolvency Service,30/11/2020,Travel & Subsistence,Investigations & Enforcement Services,Staff Payment,900016484,32.40,
BEIS,The Insolvency Service,30/11/2020,Travel & Subsistence,Investigations & Enforcement Services,Staff Payment,900016484,4.29,
BEIS,The Insolvency Service,30/11/2020,Other Costs,Official Receiver Services,The Stationery Office Ltd,300025156,84.00,662774703
BEIS,The Insolvency Service,30/11/2020,Other Costs,Official Receiver Services,The Stationery Office Ltd,300025157,84.00,662774703
BEIS,The Insolvency Service,30/11/2020,Other Costs,Official Receiver Services,The Stationery Office Ltd,300025209,84.00,662774703
